[Event "Titled Tuesday Blitz August 15 Early 2023"]
[White "Veiga, Jose Francisco R P Neves"]
[Black "Kozelov, Roman"]
[WhiteFideId "1930087"]
[BlackFideId "14133377"]
[WhiteElo "2702"]
[BlackElo "2371"]
[Result "1-0"]
[Round "1"]
[TimeControl "180+1"]
[Date "2023.08.15"]
[WhiteClock "0:00:13"]
[BlackClock "0:00:11"]
[Board "114"]

1. c4 {[%clk 0:02:43]}  Nf6 {[%clk 0:02:54]} 2. Nc3 {[%clk 0:02:42]}  e6 {[%clk 0:02:54]} 3. e4 {[%clk 0:02:42]}  b6 {[%clk 0:02:50]} 4. e5 {[%clk 0:02:42]}  Ng8 {[%clk 0:02:50]} 5. Nf3 {[%clk 0:02:42]}  Bb7 {[%clk 0:02:51]} 6. d4 {[%clk 0:02:43]}  Ne7 {[%clk 0:02:51]} 7. Be2 {[%clk 0:02:43]}  d6 {[%clk 0:02:49]} 8. O-O {[%clk 0:02:44]}  Nf5 {[%clk 0:02:47]} 9. Bg5 {[%clk 0:02:43]}  Be7 {[%clk 0:02:47]} 10. Bxe7 {[%clk 0:02:43]}  Qxe7 {[%clk 0:02:47]} 11. Re1 {[%clk 0:02:35]}  Nd7 {[%clk 0:02:47]} 12. Nb5 {[%clk 0:02:25]}  O-O {[%clk 0:02:38]} 13. Nxc7 {[%clk 0:02:19]}  Rac8 {[%clk 0:02:36]} 14. Nb5 {[%clk 0:02:19]}  a6 {[%clk 0:02:36]} 15. Nxd6 {[%clk 0:02:18]}  Nxd6 {[%clk 0:02:35]} 16. exd6 {[%clk 0:02:19]}  Qxd6 {[%clk 0:02:36]} 17. Qb3 {[%clk 0:02:13]}  Nf6 {[%clk 0:02:27]} 18. c5 {[%clk 0:02:11]}  Qd5 {[%clk 0:02:16]} 19. Qxb6 {[%clk 0:01:58]}  Rb8 {[%clk 0:02:07]} 20. Qa5 {[%clk 0:01:49]}  Qh5 {[%clk 0:01:54]} 21. h3 {[%clk 0:01:46]}  Bd5 {[%clk 0:01:51]} 22. Qd2 {[%clk 0:01:45]}  Ne4 {[%clk 0:01:49]} 23. Qc2 {[%clk 0:01:45]}  Ng5 {[%clk 0:01:45]} 24. Nxg5 {[%clk 0:01:40]}  Qxg5 {[%clk 0:01:45]} 25. Bf1 {[%clk 0:01:41]}  Rb4 {[%clk 0:01:39]} 26. Rad1 {[%clk 0:01:39]}  Rfb8 {[%clk 0:01:37]} 27. b3 {[%clk 0:01:39]}  a5 {[%clk 0:01:37]} 28. Re5 {[%clk 0:01:39]}  Qf4 {[%clk 0:01:32]} 29. Qd2 {[%clk 0:01:32]}  Qh4 {[%clk 0:01:30]} 30. g3 {[%clk 0:01:24]}  Qf6 {[%clk 0:01:26]} 31. Bg2 {[%clk 0:01:15]}  Bxg2 {[%clk 0:01:20]} 32. Kxg2 {[%clk 0:01:16]}  a4 {[%clk 0:01:19]} 33. bxa4 {[%clk 0:01:16]}  Rxa4 {[%clk 0:01:19]} 34. c6 {[%clk 0:01:09]}  Rc8 {[%clk 0:01:11]} 35. Rc5 {[%clk 0:01:06]}  h6 {[%clk 0:01:08]} 36. c7 {[%clk 0:01:03]}  Qe7 {[%clk 0:01:07]} 37. Rdc1 {[%clk 0:01:02]}  Ra7 {[%clk 0:01:06]} 38. Qf4 {[%clk 0:01:01]}  Rxa2 {[%clk 0:01:01]} 39. Rb1 {[%clk 0:01:01]}  Raa8 {[%clk 0:00:55]} 40. Rb8 {[%clk 0:00:59]}  Qd7 {[%clk 0:00:55]} 41. Rcb5 {[%clk 0:00:41]}  g5 {[%clk 0:00:44]} 42. Qf3 {[%clk 0:00:14]}  Raxb8 {[%clk 0:00:20]} 43. cxb8=Q {[%clk 0:00:12]}  Rxb8 {[%clk 0:00:21]} 44. Rxb8+ {[%clk 0:00:13]}  Kg7 {[%clk 0:00:21]} 45. Rb4 {[%clk 0:00:13]}  Kg6 {[%clk 0:00:18]} 46. Rb7 {[%clk 0:00:13]}  Qe8 {[%clk 0:00:17]} 47. d5 {[%clk 0:00:12]}  exd5 {[%clk 0:00:17]} 48. Qxd5 {[%clk 0:00:12]}  f6 {[%clk 0:00:12]} 49. Qd3+ {[%clk 0:00:12]}  Kh5 {[%clk 0:00:11]} 50. g4+ {[%clk 0:00:12]}  Kh4 {[%clk 0:00:11]} 51. Qg3# {[%clk 0:00:13]} 1-0


[Site "https://www.chess.com"]

[Event "Titled Tuesday Blitz August 15 Early 2023"]
[White "Frayna, Janelle Mae"]
[Black "Mgeladze, Tamaz"]
[WhiteFideId "5212499"]
[BlackFideId "13601202"]
[WhiteElo "2358"]
[BlackElo "2685"]
[Result "1-0"]
[Round "1"]
[TimeControl "180+1"]
[Date "2023.08.15"]
[WhiteClock "0:01:03"]
[BlackClock "0:00:42"]
[Board "119"]

1. Nf3 {[%clk 0:03:00]}  Nf6 {[%clk 0:02:53]} 2. c4 {[%clk 0:03:00]}  c5 {[%clk 0:02:53]} 3. g3 {[%clk 0:02:54]}  Nc6 {[%clk 0:02:53]} 4. Bg2 {[%clk 0:02:39]}  g6 {[%clk 0:02:52]} 5. O-O {[%clk 0:02:39]}  Bg7 {[%clk 0:02:52]} 6. d4 {[%clk 0:02:39]}  cxd4 {[%clk 0:02:53]} 7. Nxd4 {[%clk 0:02:40]}  Nxd4 {[%clk 0:02:54]} 8. Qxd4 {[%clk 0:02:39]}  O-O {[%clk 0:02:55]} 9. Nc3 {[%clk 0:02:39]}  d6 {[%clk 0:02:55]} 10. b3 {[%clk 0:02:38]}  Be6 {[%clk 0:02:53]} 11. Bb2 {[%clk 0:02:38]}  Qd7 {[%clk 0:02:49]} 12. Rfd1 {[%clk 0:02:37]}  Nd5 {[%clk 0:02:41]} 13. Qd2 {[%clk 0:02:27]}  Nxc3 {[%clk 0:02:42]} 14. Bxc3 {[%clk 0:02:28]}  Bxc3 {[%clk 0:02:42]} 15. Qxc3 {[%clk 0:02:28]}  Rfc8 {[%clk 0:02:43]} 16. Rac1 {[%clk 0:02:27]}  Rab8 {[%clk 0:02:43]} 17. Qd4 {[%clk 0:02:24]}  a6 {[%clk 0:02:36]} 18. c5 {[%clk 0:02:23]}  Qb5 {[%clk 0:02:21]} 19. cxd6 {[%clk 0:02:20]}  exd6 {[%clk 0:02:19]} 20. Bf3 {[%clk 0:02:07]}  d5 {[%clk 0:02:14]} 21. h4 {[%clk 0:02:03]}  h5 {[%clk 0:02:10]} 22. Qe5 {[%clk 0:01:58]}  Re8 {[%clk 0:02:03]} 23. Qg5 {[%clk 0:01:50]}  Kh7 {[%clk 0:01:46]} 24. Rc7 {[%clk 0:01:23]}  Rbc8 {[%clk 0:01:41]} 25. Rdc1 {[%clk 0:01:19]}  Rxc7 {[%clk 0:01:38]} 26. Rxc7 {[%clk 0:01:20]}  Qb6 {[%clk 0:01:25]} 27. Qf4 {[%clk 0:01:18]}  a5 {[%clk 0:01:14]} 28. Rxf7+ {[%clk 0:01:16]}  Kg8 {[%clk 0:01:12]} 29. Rf6 {[%clk 0:01:11]}  Kh7 {[%clk 0:00:58]} 30. Qg5 {[%clk 0:01:06]}  Rg8 {[%clk 0:00:42]} 31. Bxh5 {[%clk 0:01:03]} 1-0


[Site "https://www.chess.com"]

[Event "Titled Tuesday Blitz August 15 Early 2023"]
[White "Vaishali, Rameshbabu"]
[Black "Polaczek, Richard"]
[WhiteFideId "5091756"]
[BlackFideId "200026"]
[WhiteElo "2685"]
[BlackElo "2358"]
[Result "1-0"]
[Round "1"]
[TimeControl "180+1"]
[Date "2023.08.15"]
[WhiteClock "0:00:04"]
[BlackClock "0:00:06"]
[Board "120"]

1. e4 {[%clk 0:02:58]}  Nf6 {[%clk 0:02:58]} 2. e5 {[%clk 0:02:55]}  Nd5 {[%clk 0:02:56]} 3. d4 {[%clk 0:02:54]}  d6 {[%clk 0:02:45]} 4. c4 {[%clk 0:02:49]}  Nb6 {[%clk 0:02:44]} 5. f4 {[%clk 0:02:49]}  dxe5 {[%clk 0:02:43]} 6. fxe5 {[%clk 0:02:48]}  c5 {[%clk 0:02:43]} 7. d5 {[%clk 0:02:33]}  g6 {[%clk 0:02:42]} 8. Bf4 {[%clk 0:02:03]}  Bg7 {[%clk 0:02:42]} 9. Nc3 {[%clk 0:02:02]}  O-O {[%clk 0:02:40]} 10. Be2 {[%clk 0:02:00]}  e6 {[%clk 0:02:26]} 11. Nf3 {[%clk 0:01:56]}  exd5 {[%clk 0:02:17]} 12. cxd5 {[%clk 0:01:50]}  Bg4 {[%clk 0:02:16]} 13. O-O {[%clk 0:01:07]}  N8d7 {[%clk 0:01:52]} 14. Re1 {[%clk 0:00:47]}  Bxf3 {[%clk 0:01:09]} 15. Bxf3 {[%clk 0:00:48]}  Nc4 {[%clk 0:01:08]} 16. e6 {[%clk 0:00:33]}  fxe6 {[%clk 0:01:06]} 17. dxe6 {[%clk 0:00:33]}  Rxf4 {[%clk 0:00:58]} 18. Qxd7 {[%clk 0:00:25]}  Ne5 {[%clk 0:00:44]} 19. Qxb7 {[%clk 0:00:19]}  Rb8 {[%clk 0:00:43]} 20. e7 {[%clk 0:00:15]}  Qe8 {[%clk 0:00:37]} 21. Qd5+ {[%clk 0:00:13]}  Kh8 {[%clk 0:00:17]} 22. Rxe5 {[%clk 0:00:12]}  Rd4 {[%clk 0:00:18]} 23. Qxc5 {[%clk 0:00:08]}  Rd2 {[%clk 0:00:14]} 24. Rae1 {[%clk 0:00:07]}  Rbxb2 {[%clk 0:00:06]} 25. Qc6 {[%clk 0:00:04]} 1-0


[Site "https://www.chess.com"]

[Event "Titled Tuesday Blitz August 15 Early 2023"]
[White "Papasimakopoulos, Alexandros"]
[Black "FlemingA"]
[WhiteFideId "4244125"]
[WhiteElo "2680"]
[BlackElo "2350"]
[Result "1-0"]
[Round "1"]
[TimeControl "180+1"]
[Date "2023.08.15"]
[WhiteClock "0:00:35"]
[BlackClock "0:00:12"]
[Board "122"]

1. d4 {[%clk 0:02:44]}  Nf6 {[%clk 0:02:58]} 2. c4 {[%clk 0:02:45]}  g6 {[%clk 0:02:56]} 3. Nc3 {[%clk 0:02:45]}  Bg7 {[%clk 0:02:56]} 4. Bg5 {[%clk 0:02:45]}  O-O {[%clk 0:02:55]} 5. e3 {[%clk 0:02:45]}  d6 {[%clk 0:02:56]} 6. Nf3 {[%clk 0:02:44]}  c5 {[%clk 0:02:56]} 7. Be2 {[%clk 0:02:44]}  a6 {[%clk 0:02:49]} 8. O-O {[%clk 0:02:43]}  Bf5 {[%clk 0:02:46]} 9. a4 {[%clk 0:02:37]}  Nc6 {[%clk 0:02:41]} 10. d5 {[%clk 0:02:35]}  Ne5 {[%clk 0:02:41]} 11. Nxe5 {[%clk 0:02:33]}  dxe5 {[%clk 0:02:42]} 12. a5 {[%clk 0:02:32]}  h6 {[%clk 0:02:36]} 13. Bh4 {[%clk 0:02:32]}  g5 {[%clk 0:02:30]} 14. Bg3 {[%clk 0:02:31]}  Ne4 {[%clk 0:02:30]} 15. Nxe4 {[%clk 0:02:30]}  Bxe4 {[%clk 0:02:31]} 16. Qb3 {[%clk 0:02:27]}  Qd7 {[%clk 0:02:25]} 17. Qb6 {[%clk 0:02:24]}  Rac8 {[%clk 0:02:21]} 18. f3 {[%clk 0:02:22]}  Bg6 {[%clk 0:02:14]} 19. e4 {[%clk 0:02:22]}  f5 {[%clk 0:02:09]} 20. exf5 {[%clk 0:02:23]}  Bxf5 {[%clk 0:02:10]} 21. Rad1 {[%clk 0:02:06]}  Qd6 {[%clk 0:02:00]} 22. Qb3 {[%clk 0:01:52]}  Rb8 {[%clk 0:01:54]} 23. Bd3 {[%clk 0:01:43]}  Bxd3 {[%clk 0:01:47]} 24. Qxd3 {[%clk 0:01:44]}  b5 {[%clk 0:01:36]} 25. axb6 {[%clk 0:01:38]}  Qxb6 {[%clk 0:01:36]} 26. Rf2 {[%clk 0:01:38]}  Qb3 {[%clk 0:01:24]} 27. Qe2 {[%clk 0:01:38]}  e4 {[%clk 0:01:20]} 28. Bxb8 {[%clk 0:01:31]}  Rxb8 {[%clk 0:01:16]} 29. Rff1 {[%clk 0:01:25]}  Bd4+ {[%clk 0:01:11]} 30. Kh1 {[%clk 0:01:25]}  e3 {[%clk 0:01:08]} 31. Rd3 {[%clk 0:01:23]}  Qxb2 {[%clk 0:01:07]} 32. Rxe3 {[%clk 0:01:22]}  Bxe3 {[%clk 0:01:03]} 33. Qxe3 {[%clk 0:01:23]}  a5 {[%clk 0:00:36]} 34. Qe6+ {[%clk 0:01:12]}  Kf8 {[%clk 0:00:35]} 35. d6 {[%clk 0:01:04]}  exd6 {[%clk 0:00:33]} 36. Qxd6+ {[%clk 0:01:04]}  Kg7 {[%clk 0:00:34]} 37. Qc7+ {[%clk 0:00:50]}  Kg6 {[%clk 0:00:30]} 38. Qxc5 {[%clk 0:00:46]}  Qb6 {[%clk 0:00:18]} 39. Qe5 {[%clk 0:00:41]}  a4 {[%clk 0:00:17]} 40. Rd1 {[%clk 0:00:40]}  Qb1 {[%clk 0:00:13]} 41. Qd6+ {[%clk 0:00:35]}  Kh5 {[%clk 0:00:12]} 42. g4+ {[%clk 0:00:35]}  Kh4 {[%clk 0:00:12]} 43. Qxh6# {[%clk 0:00:35]} 1-0


[Site "https://www.chess.com"]

[Event "Titled Tuesday Blitz August 15 Early 2023"]
[White "Sovetbekova, Nurai"]
[Black "Gubajdullin, Alexei"]
[WhiteFideId "13801910"]
[BlackFideId "4141202"]
[WhiteElo "2347"]
[BlackElo "2680"]
[Result "0-1"]
[Round "1"]
[TimeControl "180+1"]
[Date "2023.08.15"]
[WhiteClock "0:00:00"]
[BlackClock "0:00:11"]
[Board "123"]

1. d4 {[%clk 0:02:55]}  g6 {[%clk 0:02:58]} 2. e4 {[%clk 0:02:49]}  d6 {[%clk 0:02:57]} 3. Nf3 {[%clk 0:02:43]}  a6 {[%clk 0:02:57]} 4. c4 {[%clk 0:02:43]}  Bg7 {[%clk 0:02:54]} 5. Nc3 {[%clk 0:02:40]}  Nf6 {[%clk 0:02:53]} 6. Bd3 {[%clk 0:02:31]}  O-O {[%clk 0:02:51]} 7. O-O {[%clk 0:02:30]}  c5 {[%clk 0:02:47]} 8. d5 {[%clk 0:02:29]}  e6 {[%clk 0:02:47]} 9. h3 {[%clk 0:02:29]}  exd5 {[%clk 0:02:47]} 10. exd5 {[%clk 0:02:28]}  Nh5 {[%clk 0:02:41]} 11. Bg5 {[%clk 0:02:15]}  Bf6 {[%clk 0:02:36]} 12. Bh6 {[%clk 0:02:03]}  Re8 {[%clk 0:02:17]} 13. Qd2 {[%clk 0:02:02]}  Bg7 {[%clk 0:01:57]} 14. Rae1 {[%clk 0:01:49]}  Nd7 {[%clk 0:01:53]} 15. Ne4 {[%clk 0:01:43]}  Ne5 {[%clk 0:01:48]} 16. Nxe5 {[%clk 0:01:38]}  Bxe5 {[%clk 0:01:46]} 17. Re2 {[%clk 0:01:09]}  Bf5 {[%clk 0:01:44]} 18. Rfe1 {[%clk 0:01:09]}  Bxe4 {[%clk 0:01:27]} 19. Bxe4 {[%clk 0:00:58]}  Bd4 {[%clk 0:01:21]} 20. Bf3 {[%clk 0:00:50]}  Rxe2 {[%clk 0:01:19]} 21. Rxe2 {[%clk 0:00:46]}  Ng7 {[%clk 0:01:17]} 22. Qe1 {[%clk 0:00:43]}  Nf5 {[%clk 0:01:12]} 23. Bf4 {[%clk 0:00:37]}  Kg7 {[%clk 0:01:06]} 24. Bg4 {[%clk 0:00:32]}  Nh6 {[%clk 0:00:50]} 25. Bxh6+ {[%clk 0:00:32]}  Kxh6 {[%clk 0:00:49]} 26. Re7 {[%clk 0:00:32]}  Qf8 {[%clk 0:00:35]} 27. Rxb7 {[%clk 0:00:21]}  Re8 {[%clk 0:00:34]} 28. Qd2+ {[%clk 0:00:21]}  Kg7 {[%clk 0:00:32]} 29. Bd7 {[%clk 0:00:14]}  Re7 {[%clk 0:00:32]} 30. Bc6 {[%clk 0:00:14]}  Qd8 {[%clk 0:00:29]} 31. Rxe7 {[%clk 0:00:13]}  Qxe7 {[%clk 0:00:29]} 32. Ba4 {[%clk 0:00:12]}  Qf6 {[%clk 0:00:27]} 33. b3 {[%clk 0:00:09]}  h5 {[%clk 0:00:27]} 34. Bd7 {[%clk 0:00:08]}  h4 {[%clk 0:00:26]} 35. Bg4 {[%clk 0:00:08]}  Be5 {[%clk 0:00:26]} 36. Bf3 {[%clk 0:00:08]}  Bf4 {[%clk 0:00:24]} 37. Qe1 {[%clk 0:00:07]}  Qd4 {[%clk 0:00:22]} 38. Qd1 {[%clk 0:00:07]}  Qc3 {[%clk 0:00:21]} 39. Kf1 {[%clk 0:00:05]}  Be5 {[%clk 0:00:21]} 40. Kg1 {[%clk 0:00:05]}  Bd4 {[%clk 0:00:20]} 41. Qe2 {[%clk 0:00:05]}  Qc1+ {[%clk 0:00:20]} 42. Kh2 {[%clk 0:00:05]}  Qf4+ {[%clk 0:00:19]} 43. g3 {[%clk 0:00:05]}  Qg5 {[%clk 0:00:18]} 44. Kg2 {[%clk 0:00:05]}  Be5 {[%clk 0:00:17]} 45. Qe1 {[%clk 0:00:06]}  hxg3 {[%clk 0:00:16]} 46. fxg3 {[%clk 0:00:06]}  Qf5 {[%clk 0:00:17]} 47. Be4 {[%clk 0:00:05]}  Qg5 {[%clk 0:00:16]} 48. Qe2 {[%clk 0:00:05]}  Qxg3+ {[%clk 0:00:16]} 49. Kf1 {[%clk 0:00:05]}  Qxh3+ {[%clk 0:00:15]} 50. Bg2 {[%clk 0:00:05]}  Qg3 {[%clk 0:00:14]} 51. Qe4 {[%clk 0:00:05]}  Bd4 {[%clk 0:00:14]} 52. Qf3 {[%clk 0:00:05]}  Qg5 {[%clk 0:00:14]} 53. a3 {[%clk 0:00:04]}  Qd2 {[%clk 0:00:13]} 54. Qe2 {[%clk 0:00:04]}  Qc1+ {[%clk 0:00:12]} 55. Qe1 {[%clk 0:00:04]}  Qc2 {[%clk 0:00:11]} 56. b4 {[%clk 0:00:00]}  Qxc4+ {[%clk 0:00:11]} 0-1


[Site "https://www.chess.com"]

[Event "Titled Tuesday Blitz August 15 Early 2023"]
[White "Haug, Havard"]
[Black "Fuzesabonyilaci"]
[WhiteFideId "1547887"]
[WhiteElo "2680"]
[BlackElo "2346"]
[Result "0-1"]
[Round "1"]
[TimeControl "180+1"]
[Date "2023.08.15"]
[WhiteClock "0:00:34"]
[BlackClock "0:00:39"]
[Board "124"]

1. e4 {[%clk 0:02:59]}  c5 {[%clk 0:02:59]} 2. c3 {[%clk 0:02:59]}  d5 {[%clk 0:02:58]} 3. exd5 {[%clk 0:02:58]}  Qxd5 {[%clk 0:02:58]} 4. d4 {[%clk 0:02:58]}  Nf6 {[%clk 0:02:58]} 5. Nf3 {[%clk 0:02:57]}  g6 {[%clk 0:02:57]} 6. Nbd2 {[%clk 0:02:51]}  cxd4 {[%clk 0:02:56]} 7. Bc4 {[%clk 0:02:49]}  Qd6 {[%clk 0:02:44]} 8. Nxd4 {[%clk 0:02:45]}  a6 {[%clk 0:02:38]} 9. O-O {[%clk 0:02:44]}  Bg7 {[%clk 0:02:37]} 10. N2f3 {[%clk 0:02:39]}  O-O {[%clk 0:02:34]} 11. Re1 {[%clk 0:02:36]}  b5 {[%clk 0:02:32]} 12. Bb3 {[%clk 0:02:36]}  Bb7 {[%clk 0:02:32]} 13. a4 {[%clk 0:02:35]}  b4 {[%clk 0:02:27]} 14. Nc2 {[%clk 0:02:06]}  Qxd1 {[%clk 0:02:23]} 15. Rxd1 {[%clk 0:02:07]}  bxc3 {[%clk 0:02:23]} 16. bxc3 {[%clk 0:02:08]}  Ne4 {[%clk 0:02:23]} 17. Ba3 {[%clk 0:01:55]}  Re8 {[%clk 0:02:10]} 18. Rdb1 {[%clk 0:01:37]}  Bxc3 {[%clk 0:01:57]} 19. Ra2 {[%clk 0:01:37]}  Bc6 {[%clk 0:01:54]} 20. Ncd4 {[%clk 0:01:34]}  Bxd4 {[%clk 0:01:51]} 21. Nxd4 {[%clk 0:01:35]}  Nc3 {[%clk 0:01:51]} 22. Rc1 {[%clk 0:01:07]}  Nxa2 {[%clk 0:01:47]} 23. Bxa2 {[%clk 0:01:08]}  Bxa4 {[%clk 0:01:38]} 24. h3 {[%clk 0:01:07]}  Nd7 {[%clk 0:01:33]} 25. Rc7 {[%clk 0:01:06]}  e6 {[%clk 0:01:27]} 26. Nf3 {[%clk 0:01:04]}  Rec8 {[%clk 0:01:19]} 27. Rb7 {[%clk 0:01:04]}  Bc6 {[%clk 0:01:19]} 28. Rb1 {[%clk 0:01:01]}  Bxf3 {[%clk 0:01:18]} 29. gxf3 {[%clk 0:01:02]}  Rc3 {[%clk 0:01:14]} 30. Bd6 {[%clk 0:01:02]}  Rxf3 {[%clk 0:01:12]} 31. Rc1 {[%clk 0:01:00]}  Rd3 {[%clk 0:01:12]} 32. Bg3 {[%clk 0:00:59]}  a5 {[%clk 0:01:07]} 33. Bb1 {[%clk 0:00:59]}  Rd2 {[%clk 0:01:06]} 34. Be4 {[%clk 0:00:59]}  Rd8 {[%clk 0:01:01]} 35. Ra1 {[%clk 0:00:52]}  Nc5 {[%clk 0:00:56]} 36. Bf3 {[%clk 0:00:52]}  Nb3 {[%clk 0:00:53]} 37. Ra3 {[%clk 0:00:51]}  Nd4 {[%clk 0:00:47]} 38. Be4 {[%clk 0:00:40]}  Ne2+ {[%clk 0:00:46]} 39. Kg2 {[%clk 0:00:40]}  Nxg3 {[%clk 0:00:46]} 40. Kxg3 {[%clk 0:00:41]}  R2d4 {[%clk 0:00:44]} 41. Bc6 {[%clk 0:00:36]}  Rd3+ {[%clk 0:00:40]} 42. Rxd3 {[%clk 0:00:37]}  Rxd3+ {[%clk 0:00:41]} 43. Kf4 {[%clk 0:00:36]}  a4 {[%clk 0:00:39]} 44. Bxa4 {[%clk 0:00:35]}  Rd4+ {[%clk 0:00:39]} 45. Kg3 {[%clk 0:00:36]}  Rxa4 {[%clk 0:00:40]} 46. h4 {[%clk 0:00:34]}  h5 {[%clk 0:00:39]} 0-1


[Site "https://www.chess.com"]

[Event "Titled Tuesday Blitz August 15 Early 2023"]
[White "Bogaudinov, Rushan"]
[Black "Kushko, Dmitriy"]
[WhiteFideId "4129288"]
[BlackFideId "14162261"]
[WhiteElo "2344"]
[BlackElo "2673"]
[Result "0-1"]
[Round "1"]
[TimeControl "180+1"]
[Date "2023.08.15"]
[WhiteClock "0:00:00"]
[BlackClock "0:00:42"]
[Board "127"]

1. d4 {[%clk 0:02:27]}  g6 {[%clk 0:02:59]} 2. Nf3 {[%clk 0:02:27]}  Bg7 {[%clk 0:02:59]} 3. e3 {[%clk 0:02:28]}  Nf6 {[%clk 0:02:56]} 4. Be2 {[%clk 0:02:27]}  O-O {[%clk 0:02:56]} 5. O-O {[%clk 0:02:27]}  c5 {[%clk 0:02:55]} 6. c4 {[%clk 0:02:27]}  cxd4 {[%clk 0:02:54]} 7. Nxd4 {[%clk 0:02:27]}  d5 {[%clk 0:02:51]} 8. Nc3 {[%clk 0:02:25]}  Nc6 {[%clk 0:02:51]} 9. Nxc6 {[%clk 0:02:09]}  bxc6 {[%clk 0:02:50]} 10. cxd5 {[%clk 0:02:09]}  cxd5 {[%clk 0:02:48]} 11. Bf3 {[%clk 0:01:55]}  Bb7 {[%clk 0:02:42]} 12. Qa4 {[%clk 0:01:51]}  e6 {[%clk 0:02:40]} 13. Rd1 {[%clk 0:01:48]}  Nd7 {[%clk 0:02:35]} 14. Qa3 {[%clk 0:01:42]}  Ne5 {[%clk 0:02:25]} 15. Be2 {[%clk 0:01:42]}  Qb6 {[%clk 0:02:22]} 16. Na4 {[%clk 0:01:39]}  Qc6 {[%clk 0:02:14]} 17. Nc5 {[%clk 0:01:32]}  a5 {[%clk 0:01:54]} 18. Nxb7 {[%clk 0:01:31]}  Qxb7 {[%clk 0:01:54]} 19. Rb1 {[%clk 0:01:21]}  Rfc8 {[%clk 0:01:51]} 20. h3 {[%clk 0:00:43]}  Rc2 {[%clk 0:01:40]} 21. Rd2 {[%clk 0:00:37]}  Rac8 {[%clk 0:01:39]} 22. Rxc2 {[%clk 0:00:36]}  Rxc2 {[%clk 0:01:40]} 23. Bd1 {[%clk 0:00:34]}  Qc7 {[%clk 0:01:04]} 24. Bxc2 {[%clk 0:00:18]}  Qxc2 {[%clk 0:01:05]} 25. Ra1 {[%clk 0:00:18]}  Nd3 {[%clk 0:01:05]} 26. f4 {[%clk 0:00:14]}  Nxc1 {[%clk 0:01:01]} 27. Qxa5 {[%clk 0:00:11]}  Bxb2 {[%clk 0:01:00]} 28. Qd8+ {[%clk 0:00:06]}  Kg7 {[%clk 0:01:01]} 29. Rxc1 {[%clk 0:00:05]}  Qxc1+ {[%clk 0:01:00]} 30. Kf2 {[%clk 0:00:05]}  Bc3 {[%clk 0:00:58]} 31. Qe7 {[%clk 0:00:03]}  Qe1+ {[%clk 0:00:54]} 32. Kf3 {[%clk 0:00:03]}  Qf1+ {[%clk 0:00:55]} 33. Kg3 {[%clk 0:00:01]}  Qe1+ {[%clk 0:00:54]} 34. Kh2 {[%clk 0:00:02]}  Qxe3 {[%clk 0:00:54]} 35. Qd6 {[%clk 0:00:02]}  Bd2 {[%clk 0:00:51]} 36. g3 {[%clk 0:00:01]}  Qf2+ {[%clk 0:00:51]} 37. Kh1 {[%clk 0:00:02]}  Qe1+ {[%clk 0:00:46]} 38. Kg2 {[%clk 0:00:02]}  Qe4+ {[%clk 0:00:42]} 39. Kf1 {[%clk 0:00:01]}  Qf3+ {[%clk 0:00:42]} 40. Kg1 {[%clk 0:00:00]}  Be3+ {[%clk 0:00:42]} 0-1


[Site "https://www.chess.com"]